fUST/lending_fUST_20240812
["ID","MTS","AMOUNT","RATE_DAILY","PERIOD"]
[334662835,1723423844976,-603.634289,0.00019354,2]
[334662836,1723423844986,-603.634289,0.00019354,2]
[334662837,1723423844999,-603.634289,0.00019354,2]
[334662838,1723423845008,-603.634289,0.00019354,2]
[334662839,1723423845017,-603.634289,0.00019354,2]
[334662840,1723423845026,-603.634289,0.00019354,2]
[334662841,1723423845035,-603.63428,0.00019354,2]
[334662842,1723423845046,-207.3044688,0.000194,2]
[334662843,1723423845055,-301.3180478,0.00019416,2]
[334662844,1723423845066,-2962.727715,0.00019431,2]
[334662868,1723423846023,-1555.129656,0.00019254,2]
[334662869,1723423846033,-1555.129656,0.00019344,2]
[334662870,1723423846043,-1555.129656,0.00019351,2]
[334662871,1723423846054,-1555.129656,0.00019354,2]
[334662872,1723423846063,-1555.129656,0.00019354,2]
[334662873,1723423846072,-1555.129656,0.00019354,2]
[334662874,1723423846082,-1555.129656,0.00019354,2]
[334662875,1723423846092,-1555.129656,0.00019354,2]
[334662876,1723423846102,-1555.129656,0.00019354,2]
[334662877,1723423846111,-13838.434535,0.00019431,2]
[334662878,1723423846120,-339.93,0.00019431,3]
[334662879,1723423846131,-16801.16225,0.00019431,2]
[334662880,1723423846141,-465.429293,0.00019434,2]
[334662881,1723423846151,-465.429293,0.00019434,2]
[334662882,1723423846160,-1108.075142,0.00019434,2]
[334662883,1723423846169,-1108.075142,0.00019434,2]
[334662884,1723423846179,-481.40294,0.00019434,2]
[334662885,1723423846188,-481.40294,0.00019434,2]
[334662886,1723423846197,-500.0,0.00019439,2]
[334662887,1723423846206,-293.50719134,0.00019439,2]
[334662888,1723423846216,-500.0,0.00019439,2]
[334662889,1723423846225,-500.0,0.00019439,2]
[334662890,1723423846235,-481.20534812,0.00019439,2]
[334662891,1723423846245,-500.0,0.00019439,2]
[334662892,1723423846254,-500.0,0.00019439,2]
[334662893,1723423846264,-157.641683,0.0001944,2]
[334662894,1723423846273,-151.0,0.0001944,2]
[334662895,1723423846282,-1393.764102,0.0001944,2]
[334662896,1723423846291,-1393.764102,0.0001944,2]
[334662897,1723423846300,-151.0,0.0001944,2]
[334662898,1723423846310,-151.0,0.0001944,2]
[334662899,1723423846319,-151.0,0.0001944,2]
[334662900,1723423846328,-16801.16225,0.00019441,2]
[334662901,1723423846337,-158.349676,0.00019441,2]
[334662902,1723423846347,-503.095098,0.00019441,2]
[334662903,1723423846356,-503.095098,0.00019441,2]
[334662904,1723423846366,-151.0,0.00019441,2]
[334662905,1723423846375,-151.0,0.00019441,2]
[334662906,1723423846385,-172.203027,0.00019441,2]
[334662907,1723423846394,-172.203027,0.00019441,2]
[334662908,1723423846404,-208.82481,0.00019441,2]
[334662909,1723423846413,-400.0994,0.00019441,2]
[334662910,1723423846423,-400.0994,0.00019441,2]
[334662911,1723423846432,-400.0994,0.00019441,2]
[334662912,1723423846441,-400.0994,0.00019441,2]
[334662913,1723423846451,-400.0994,0.00019441,2]
[334662914,1723423846460,-400.0994,0.00019441,2]
[334662915,1723423846470,-1393.764102,0.00019441,2]
[334662916,1723423846479,-1393.764102,0.00019441,2]
[334662917,1723423846490,-1393.764102,0.00019441,2]
[334662918,1723423846498,-1393.764102,0.00019441,2]
[334662919,1723423846507,-1393.764102,0.00019441,2]
[334662920,1723423846517,-1393.764102,0.00019441,2]
[334662921,1723423846526,-1393.764102,0.00019441,2]
[334662922,1723423846535,-1393.764102,0.00019441,2]
[334662923,1723423846545,-151.0,0.00019441,2]
[334662924,1723423846557,-151.0,0.00019441,2]
[334662925,1723423846567,-151.0,0.00019441,2]
[334662926,1723423846576,-151.0,0.00019441,2]
[334662927,1723423846585,-151.0,0.00019441,2]
[334662928,1723423846595,-293.529273,0.00019441,2]
[334662929,1723423846605,-151.0,0.00019441,2]
[334662930,1723423846614,-151.0,0.00019441,2]
[334662931,1723423846623,-151.0,0.00019441,2]
[334662932,1723423846632,-465.429293,0.00019441,2]
[334662933,1723423846642,-465.429293,0.00019441,2]
[334662934,1723423846655,-465.429293,0.00019441,2]
[334662935,1723423846665,-465.429293,0.00019441,2]
[334662936,1723423846674,-465.429293,0.00019441,2]
[334662937,1723423846683,-465.429291,0.00019441,2]
[334662938,1723423846693,-1108.075142,0.00019441,2]
[334662939,1723423846702,-1108.075142,0.00019441,2]
[334662940,1723423846711,-1108.075142,0.00019441,2]
[334662941,1723423846722,-1108.075142,0.00019441,2]
[334662942,1723423846731,-1108.075142,0.00019441,2]
[334662943,1723423846743,-1108.075148,0.00019441,2]
[334662944,1723423846753,-481.40294,0.00019441,2]
[334662945,1723423846762,-481.40294,0.00019441,2]
[334662946,1723423846773,-481.40294,0.00019441,2]
[334662947,1723423846783,-481.40294,0.00019441,2]
[334662948,1723423846793,-481.40294,0.00019441,2]
[334662949,1723423846803,-481.40294,0.00019441,2]
[334662950,1723423846814,-641.326548,0.00019441,2]
[334662951,1723423846824,-641.326548,0.00019441,2]
[334662952,1723423846834,-641.326555,0.00019441,2]
[334662953,1723423846844,-16801.16225,0.00019444,2]
[334662954,1723423846853,-503.095098,0.00019444,2]
[334662955,1723423846863,-503.095098,0.00019444,2]
[334662956,1723423846873,-151.0,0.00019444,2]
[334662957,1723423846882,-151.0,0.00019444,2]
[334662958,1723423846892,-172.203027,0.00019444,2]
[334662959,1723423846901,-172.203027,0.00019444,2]
[334662960,1723423846912,-400.0994,0.00019444,2]
[334662961,1723423846921,-400.0994,0.00019444,2]
[334662962,1723423846931,-400.0994,0.00019444,2]
[334662963,1723423846941,-400.0994,0.00019444,2]
[334662964,1723423846951,-400.0994,0.00019444,2]
[334662965,1723423846962,-400.099396,0.00019444,2]
[334662966,1723423846973,-1393.764102,0.00019444,2]
[334662967,1723423846984,-1393.76410129,0.00019444,2]
[334662968,1723423846995,-151.0,0.00019444,2]
[334662969,1723423847004,-1271.33404696,0.00019451,11]
[334662970,1723423847014,-151.0,0.00019451,2]
[334662971,1723423847024,-151.0,0.00019451,2]
[334662972,1723423847035,-240.133107,0.00019451,2]
[334662973,1723423847044,-421.157263,0.00019451,2]
[334662974,1723423847053,-151.0,0.00019451,2]
[334662975,1723423847063,-151.0,0.00019451,2]
[334662976,1723423847072,-151.0,0.00019451,2]
[334662977,1723423847081,-151.0,0.00019451,2]
[334662978,1723423847091,-151.0,0.00019451,2]
[334662979,1723423847101,-151.0,0.00019451,2]
[334662980,1723423847110,-151.0,0.00019451,2]
[334662981,1723423847120,-151.0,0.00019451,2]
[334662982,1723423847129,-285.96787,0.00019451,2]
[334662983,1723423847140,-151.0,0.00019451,2]
[334662984,1723423847150,-151.0,0.00019451,2]
[334662985,1723423847160,-151.0,0.00019451,2]
[334662986,1723423847169,-151.0,0.00019451,2]
[334662987,1723423847179,-151.0,0.00019451,2]
[334662988,1723423847189,-151.0,0.00019451,2]
[334662989,1723423847198,-151.0,0.00019451,2]
[334662990,1723423847208,-151.0,0.00019451,2]
[334662991,1723423847218,-151.0,0.00019451,2]
[334662992,1723423847228,-151.0,0.00019451,2]
[334662993,1723423847238,-151.0,0.00019451,2]
[334662994,1723423847247,-151.0,0.00019451,2]
[334662995,1723423847256,-151.0,0.00019451,2]
[334662996,1723423847265,-151.0,0.00019451,2]
[334662997,1723423847275,-151.0,0.00019451,2]
[334662998,1723423847285,-151.0,0.00019451,2]
[334662999,1723423847294,-151.0,0.00019451,2]
[334663000,1723423847303,-151.0,0.00019451,2]
[334663001,1723423847313,-252.414785,0.00019451,2]
[334663002,1723423847322,-151.0,0.00019451,2]
[334663003,1723423847332,-151.0,0.00019451,2]
[334663004,1723423847341,-248.210816,0.00019451,2]
[334663005,1723423847351,-151.0,0.00019451,2]
[334663006,1723423847361,-151.0,0.00019451,2]
[334663007,1723423847370,-151.0,0.00019451,2]
[334663008,1723423847380,-151.0,0.00019451,2]
[334663009,1723423847389,-151.0,0.00019451,2]
[334663010,1723423847400,-151.0,0.00019451,2]
[334663011,1723423847409,-154.575148,0.00019451,2]
[334663012,1723423847419,-503.095098,0.00019451,2]
[334663013,1723423847429,-503.095098,0.00019451,2]
[334663014,1723423847438,-503.095098,0.00019451,2]
[334663015,1723423847448,-503.095098,0.00019451,2]
[334663016,1723423847458,-503.095098,0.00019451,2]
[334663017,1723423847468,-503.095098,0.00019451,2]
[334663018,1723423847477,-503.095098,0.00019451,2]
[334663019,1723423847487,-503.095098,0.00019451,2]
[334663020,1723423847496,-503.095098,0.00019451,2]
[334663021,1723423847506,-503.095098,0.00019451,2]
[334663022,1723423847516,-503.095098,0.00019451,2]
[334663023,1723423847525,-503.095098,0.00019451,2]
[334663024,1723423847534,-503.095098,0.00019451,2]
[334663025,1723423847544,-503.095101,0.00019451,2]
[334663026,1723423847554,-151.0,0.00019451,2]
[334663027,1723423847563,-151.0,0.00019451,2]
[334663028,1723423847572,-151.0,0.00019451,2]
[334663029,1723423847581,-151.0,0.00019451,2]
[334663030,1723423847590,-151.0,0.00019451,2]
[334663031,1723423847599,-151.0,0.00019451,2]
[334663032,1723423847609,-151.0,0.00019451,2]
[334663033,1723423847620,-151.0,0.00019451,2]
[334663034,1723423847631,-151.0,0.00019451,2]
[334663035,1723423847643,-151.0,0.00019451,2]
[334663036,1723423847657,-151.0,0.00019451,2]
[334663037,1723423847667,-151.0,0.00019451,2]
[334663038,1723423847678,-209.669125,0.00019451,2]
[334663039,1723423847687,-172.203027,0.00019451,2]
[334663040,1723423847699,-172.203027,0.00019451,2]
[334663041,1723423847710,-172.203027,0.00019451,2]
[334663042,1723423847722,-172.203027,0.00019451,2]
[334663043,1723423847733,-172.203027,0.00019451,2]
[334663044,1723423847745,-172.203027,0.00019451,2]
[334663045,1723423847756,-172.203027,0.00019451,2]
[334663046,1723423847766,-172.203027,0.00019451,2]
[334663047,1723423847775,-172.203027,0.00019451,2]
[334663048,1723423847784,-172.203027,0.00019451,2]
[334663049,1723423847794,-172.203027,0.00019451,2]
[334663050,1723423847803,-172.203027,0.00019451,2]
[334663051,1723423847812,-172.203027,0.00019451,2]
[334663052,1723423847822,-172.203024,0.00019451,2]
[334663053,1723423847831,-151.0,0.00019454,2]
[334663054,1723423847841,-151.0,0.00019454,2]
[334663055,1723423847852,-731.88498011,0.00019477,10]
[334663056,1723423847862,-151.0,0.00019478,2]
[334663057,1723423847871,-151.0,0.00019478,2]
[334663058,1723423847881,-151.0,0.00019478,2]
[334663059,1723423847889,-151.0,0.00019478,2]
[334663060,1723423847899,-151.0,0.00019478,2]
[334663061,1723423847910,-151.0,0.00019478,2]
[334663062,1723423847920,-151.0,0.00019478,2]
[334663063,1723423847930,-151.0,0.00019478,2]
[334663064,1723423847942,-151.0,0.00019478,2]
[334663065,1723423847952,-225.33233,0.00019478,2]
[334663066,1723423847962,-465.03510191,0.00019518,2]
[334663067,1723423847971,-8170.42256218,0.0001959,2]
[334663071,1723424356120,1271.0,0.000251,60]
[334663073,1723424757358,-7842.40051956,0.00018,2]
[334663074,1723424825162,-510.00019594,0.00018,2]
[334663075,1723424825183,-252.605826,0.00018904,2]
[334663076,1723424825204,-250.0,0.00019041,2]
[334663077,1723424825224,-1221.87945195,0.00019203,10]
[334663078,1723424826224,-783.12054805,0.00019203,10]
[334663079,1723424826256,-719.46628737,0.0001927,2]
[334663080,1723424826283,-790.96254212,0.00019386,2]
[334663081,1723424826306,-153.0,0.000194,2]
[334663082,1723424826329,-300.0,0.0001945,2]
[334663083,1723424826357,-3308.45307851,0.00019451,2]
[334663084,1723424842119,-1754.63530167,0.00019451,2]
[334663085,1723424842139,-720.34125155,0.00019477,2]
[334663086,1723424842159,-5867.83366195,0.00019484,2]
[334663145,1723425038255,-162.57357,0.00019178,2]
[334663146,1723425038265,-3447.80501978,0.00019484,2]
[334663147,1723425038276,-200.00896534,0.00019484,2]
[334663148,1723425038286,-300.0,0.00019498,2]
[334663149,1723425038295,-589.133361,0.000195,2]
[334663150,1723425038306,-153.0,0.000195,2]
[334663151,1723425038316,-276.3305429,0.000195,2]
[334663152,1723425038327,-28.56351144,0.000195,2]
[334663159,1723425038595,-385.72780456,0.000195,2]
[334663160,1723425038608,-153.0,0.000195,2]
[334663161,1723425038620,-207.3044688,0.000195,2]
[334663162,1723425038631,-180.94663944,0.000195,2]
[334663163,1723425038700,-113.73681096,0.000195,2]
[334663164,1723425038710,-153.0,0.000195,2]
[334663165,1723425038719,-153.0,0.000195,2]
[334663166,1723425038731,-150.01,0.00019589,2]
[334663167,1723425038741,-103.03123971,0.00019589,2]
[334663231,1723425046355,-248.27616376,0.00019155,2]
[334663232,1723425095079,1238.58995642,0.00018,2]
[334663233,1723425095101,761.41004358,0.00018,2]
[334663237,1723425350802,2193.65963185,0.0001,2]
[334663242,1723425600199,2164.15371537,0.00012121,2]
[334663246,1723425666334,6249.1740888,0.00014692,2]
[334663250,1723425915478,1888.0,0.00027,120]
[334663251,1723425945147,-585.87334437,0.00017918,2]
[334663252,1723425945170,-49.26571271,0.00018527,2]
[334663253,1723425951978,-343.67991962,0.000284,120]
[334663254,1723425952064,-169.890946,0.00028493,120]
[334663255,1723425952074,-131.42913438,0.0003,120]
[334663257,1723426036103,-541.09545139,0.00018527,2]
[334663258,1723426036127,-1877.50776937,0.00018557,2]
[334663259,1723426036150,-253.288156,0.00018904,2]
[334663260,1723426036173,-1644.63563966,0.00018979,7]
[334663261,1723426036197,-1113.421982,0.00019,2]
[334663262,1723426036221,-932.99527997,0.00019155,2]
[334663263,1723426036246,-157.09694705,0.00019167,2]
[334663264,1723426036271,-1592.09147728,0.00019177,2]
[334663265,1723426036294,-1110.15351103,0.00019177,2]
[334663266,1723426036319,-300.0,0.00019199,2]
[334663267,1723426036342,-267.9126531,0.000192,2]
[334663268,1723426036365,-267.9126531,0.000192,2]
[334663269,1723426036387,-267.9126531,0.000192,2]
[334663270,1723426036409,-267.9126531,0.000192,2]
[334663271,1723426036433,-207.3044688,0.000192,2]
[334663272,1723426036456,-288.3473829,0.000192,2]
[334663273,1723426036477,-267.9126531,0.000192,2]
[334663274,1723426036500,-589.3669008,0.000192,2]
[334663275,1723426036525,-535.5361377,0.000192,2]
[334663276,1723426036547,-153.0,0.000192,2]
[334663277,1723426036571,-267.9126531,0.000192,2]
[334663278,1723426036593,-153.0,0.000192,2]
[334663279,1723426036616,-465.0017551,0.00019469,2]
[334663280,1723426036641,-6811.86570021,0.00019484,2]
[334663348,1723426239083,-240.623748,0.00018904,2]
[334663349,1723426239093,-472.28479668,0.00018979,2]
[334663350,1723426239103,-359.80895263,0.00019484,2]
[334663351,1723426239112,-1000.0,0.000195,2]
[334663352,1723426239122,-153.0,0.000195,2]
[334663353,1723426239131,-153.0,0.000195,2]
[334663354,1723426239141,-300.0,0.00019588,2]
[334663355,1723426239153,-150.01,0.00019589,2]
[334663356,1723426239162,-2855.45920124,0.00019589,2]
[334663357,1723426239171,-155.0,0.000196,2]
[334663358,1723426239183,-160.0,0.00019607,3]
[334663359,1723426239200,-882.73792794,0.0001968,2]
[334663452,1723426351386,273.37336231,9.9e-05,2]
[334663466,1723426399209,215.97272999,0.00012,2]
[334663467,1723426408466,155.10078016,0.00012,2]
[334663468,1723426409540,281.14277553,9.9e-05,2]
[334663469,1723426413081,783.94464983,0.00012,2]
[334663471,1723426483518,495.83931589,0.00014545,2]
[334663472,1723426488075,418.78312847,0.00014545,2]
[334663477,1723426686805,-300.0,0.00018681,2]
[334663478,1723426686828,-12027.0292241,0.00018682,2]
[334663484,1723427060900,327.35,0.00027,120]
[334663486,1723427159134,-290.0,0.00018489,2]
[334663487,1723427159159,-238.79581,0.00018904,2]
[334663488,1723427159185,-226.764623,0.00018904,2]
[334663489,1723427159211,-154.97961107,0.00018979,2]
[334663490,1723427159237,-506.91230394,0.00019,2]
[334663491,1723427227109,-210.103754,0.00018904,2]
[334663492,1723427227131,-587.80769606,0.00019,2]
[334663493,1723427227153,-155.04269184,0.00019046,2]
[334663494,1723427227176,-979.52100795,0.00019147,7]
[334663495,1723427231113,-668.31367482,0.00019147,7]
[334663496,1723427231135,-818.57752093,0.00019177,4]
[334663497,1723427231156,-179.0955137,0.00019178,2]
[334663498,1723427231178,-162.57357,0.00019178,2]
[334663499,1723427231202,-153.0,0.000195,2]
[334663500,1723427231224,-153.0,0.000195,2]
[334663501,1723427231245,-153.0,0.000195,2]
[334663502,1723427231268,-153.0,0.000195,2]
[334663503,1723427231288,-420.9344986,0.000195,2]
[334663504,1723427231309,-2460.26870198,0.00019547,2]
[334663505,1723427231334,-300.0,0.00019599,2]
[334663506,1723427231356,-2117.26207206,0.000196,2]
[334663507,1723427231379,-2286.17443472,0.00019679,2]
[334663508,1723427231400,-150.01,0.00019679,2]
[334663509,1723427231421,-157.0,0.0001968,2]
[334663510,1723427231444,-331.1751213,0.00019681,2]
[334663511,1723427231466,-509.0682033,0.000197,2]
[334663512,1723427231487,-267.9126531,0.000197,2]
[334663513,1723427231508,-2256.44655346,0.000197,2]
[334663514,1723427388827,273.37336231,9.9e-05,2]
[334663515,1723427404662,273.37336231,9.9e-05,2]
[334663516,1723427421135,273.37336231,9.9e-05,2]
[334663552,1723427437043,273.37336231,9.9e-05,2]
[334663572,1723427438802,-153.0,0.000192,2]
[334663573,1723427438812,-1367.53985479,0.00019256,2]
[334663574,1723427438826,-1409.53244341,0.00019256,2]
[334663575,1723427438836,-160.9943149,0.00019451,2]
[334663576,1723427438846,-157.67852044,0.00019477,2]
[334663577,1723427438856,-201.48320949,0.00019683,2]
[334663578,1723427439142,-5.82125931,0.00019683,2]
[334663579,1723427439152,-150.01,0.00019699,2]
[334663580,1723427439162,-1828.93954777,0.00019699,2]
[334663581,1723427439173,-300.0,0.00019699,2]
[334663582,1723427439185,-2065.99889897,0.000197,2]
[334663583,1723427439197,-999.97034271,0.00019799,2]
[334663584,1723427439208,-240.56996624,0.00019799,2]
[334663585,1723427439222,-139.44899794,0.00019799,2]
[334663586,1723427439232,-504.93032807,0.00019799,2]
[334663587,1723427439241,-366.60616057,0.000198,11]
[334663588,1723427439251,-45884.74936273,0.000198,2]
[334663637,1723427452686,273.37336231,9.9e-05,2]
[334663638,1723427467334,155.07873182,0.00012,2]
[334663639,1723427468622,273.37336231,9.9e-05,2]
[334663640,1723427484456,273.37336231,9.9e-05,2]
[334663642,1723427499992,273.37336231,9.9e-05,2]
[334663644,1723427515338,273.37336231,9.9e-05,2]
[334663645,1723427545595,273.37336231,9.9e-05,2]
[334663646,1723427562578,273.37336231,9.9e-05,2]
[334663647,1723427578362,273.37336231,9.9e-05,2]
[334663648,1723427594361,273.37336231,9.9e-05,2]
[334663649,1723427610342,273.37336231,9.9e-05,2]
[334663650,1723427625777,273.37336231,9.9e-05,2]
[334663651,1723427641619,273.37336231,9.9e-05,2]
[334663652,1723427657621,273.37336231,9.9e-05,2]
[334663655,1723427673424,273.37336231,9.9e-05,2]
[334663656,1723427688761,273.37336231,9.9e-05,2]
[334663659,1723427905006,5115.75594599,0.00025,60]
[334663660,1723427985398,10000.0,0.00025099,59]
[334663661,1723427990927,203.832602,0.00014247,2]
[334663667,1723428291191,269.0,0.00027,120]
[334663668,1723428358184,-199.598566,0.00018904,2]
[334663669,1723428358205,-731.62700184,0.00019139,2]
[334663670,1723428358226,-383.75592559,0.00019147,2]
[334663671,1723428358246,-227.56265669,0.00019153,2]
[334663672,1723428358266,-344.05414335,0.00019153,2]
[334663673,1723428358293,-471.30867325,0.00019167,2]
[334663674,1723428358320,-498.97166721,0.00019177,2]
[334663675,1723428426059,213.1968843,0.00027,120]
[334663676,1723428433123,-472.28479668,0.00018989,2]
[334663677,1723428433149,-472.33600208,0.00019155,2]
[334663678,1723428433178,-155.60120608,0.00019177,2]
[334663679,1723428433203,-170.31606557,0.00019177,2]
[334663680,1723428433225,-467.31413627,0.00019421,2]
[334663681,1723428433253,-1002.148822,0.000195,2]
[334663682,1723428433276,-323.4670889,0.000195,2]
[334663683,1723428433300,-153.0,0.000195,2]
[334663684,1723428433323,-1135.64435605,0.0001954,2]
[334663685,1723428433347,-153.0,0.000196,2]
[334663686,1723428433371,-207.3044688,0.000196,2]
[334663687,1723428433397,-300.0,0.00019798,2]
[334663688,1723428433423,-191.66556492,0.00019799,2]
[334663689,1723428433449,-1828.93954778,0.00019799,2]
[334663690,1723428433473,-5083.0407479,0.000198,2]
[334663691,1723428433497,-207.3044688,0.000198,2]
[334663692,1723428433522,-153.0,0.000198,2]
[334663693,1723428433546,-160.0,0.00019844,4]
[334663694,1723428433569,-306.0,0.000199,2]
[334663695,1723428433592,-1181.69,0.000199,2]
[334663696,1723428433616,-1807.74903659,0.000199,2]
[334663697,1723428433638,-174.298995,0.00019949,2]
[334663698,1723428433664,-170.861499,0.00019949,2]
[334663699,1723428433688,-1842.00841375,0.0002,2]
[334663700,1723428433711,-154.76012181,0.0002,2]
[334663701,1723428433733,-1340.18240198,0.0002,2]
[334663702,1723428433755,-1856.61164438,0.0002,2]
[334663703,1723428433778,-1627.2392472,0.0002,2]
[334663704,1723428433799,-671.72871424,0.0002,2]
[334663705,1723428443126,-1371.70466083,0.00019999,2]
[334663706,1723428443151,-108.07919943,0.0002,2]
[334663707,1723428450180,-302.83472739,0.0002,2]
[334663708,1723428524819,273.37336231,9.9e-05,2]
[334663709,1723428536915,159.9218622,0.00014247,2]
[334663712,1723428602324,166.06905425,0.00017269,2]
[334663713,1723428611934,3869.81350584,0.00017269,2]
[334663714,1723428611958,2139.02781667,0.00017269,2]
[334663715,1723428611991,3929.24394752,0.00017269,2]
[334663796,1723428639108,-1581.78040706,0.000199,2]
[334663797,1723428639117,-1028.77849562,0.00019999,2]
[334663799,1723428639127,-300.0,0.00019999,2]
[334663801,1723428639137,-3102.70821797,0.0002,2]
[334663803,1723428639147,-365.52758435,0.0002,2]
[334663805,1723428639156,-264.4541664,0.0002,2]
[334663807,1723428639167,-347.66389362,0.0002,2]
[334663809,1723428639177,-156.5036659,0.0002,2]
[334663810,1723428639188,-154.76012181,0.0002,2]
[334663811,1723428639198,-498.32034048,0.0002,4]
[334663812,1723428639208,-154.76012181,0.0002,2]
[334663813,1723428639217,-217.3681482,0.0002,2]
[334663814,1723428639227,-346.18021093,0.0002,2]
[334663815,1723428639239,-774.45172174,0.0002,2]
[334663816,1723428639249,-11452.18383996,0.0002,2]
[334663817,1723428639258,-153.712012,0.0002,2]
[334663818,1723428639268,-151.0,0.0002,2]
[334663819,1723428639277,-300.0,0.0002,8]
[334663820,1723428639286,-153.948828,0.0002,2]
[334663821,1723428639294,-219.32462,0.0002,2]
[334663822,1723428639303,-219.32462,0.0002,2]
[334663823,1723428639312,-219.32462,0.0002,2]
[334663824,1723428639322,-219.32462,0.0002,2]
[334663825,1723428639331,-219.32462,0.0002,2]
[334663826,1723428639340,-219.32462,0.0002,2]
[334663827,1723428639350,-546.643164,0.0002,2]
[334663828,1723428639361,-546.643164,0.0002,2]
[334663829,1723428639370,-546.643164,0.0002,2]
[334663830,1723428639379,-546.643164,0.0002,2]
[334663831,1723428639390,-220.24786859,0.0002,2]
[334663832,1723428639646,-309.25989074,0.0002,2]
[334663880,1723428643938,-771.58387172,0.00019999,2]
[334663881,1723428643948,-17.13540467,0.0002,2]
[334663882,1723428643958,-290.12172651,0.0002,2]
[334663896,1723428673682,273.37336231,9.9e-05,2]
[334663897,1723428688957,273.37336231,9.9e-05,2]
[334663898,1723428704504,273.37336231,9.9e-05,2]
[334663899,1723428720305,33.89431821,9.9e-05,2]
[334663900,1723428720329,239.4790441,9.9e-05,2]
[334663901,1723428736647,273.37336231,9.9e-05,2]
[334663902,1723428749998,288.74012521,0.00012,2]
[334663903,1723428752726,273.37336231,9.9e-05,2]
[334663904,1723428752883,184.4669287,0.00012,2]
[334663905,1723428760456,510.00151417,0.00012,2]
[334663906,1723428762423,157.48836998,0.00012,2]
[334663907,1723428763698,968.32777706,0.00012,2]
[334663908,1723428765637,166.18077381,0.00012,2]
[334663909,1723428767082,272.38247463,0.00012,2]
[334663910,1723428768289,198.05040028,0.00012,2]
[334663911,1723428768869,273.37336231,9.9e-05,2]
[334663912,1723428770240,522.77152672,0.00012,2]
[334663913,1723428772280,709.62529686,0.00012,2]
[334663914,1723428775860,406.79603014,0.00012,2]
[334663915,1723428776214,365.43623014,0.00012,2]
[334663916,1723428776624,167.4361762,0.00012,2]
[334663917,1723428779386,536.91734532,0.00012,2]
[334663918,1723428780331,417.66434958,0.00012,2]
[334663919,1723428782368,191.24966143,0.00012,2]
[334663920,1723428783003,2109.84722728,0.00012,2]
[334663921,1723428783060,9199.94528425,0.00012,2]
[334663922,1723428784579,211.07619941,0.00012,2]
[334663923,1723428784693,273.37336231,9.9e-05,2]
[334663924,1723428787645,154.9284136,0.00012,2]
[334663925,1723428789340,184.38908309,0.00015,2]
[334663926,1723428790305,851.99803358,0.00012,2]
[334663927,1723428790996,302.82294496,0.00012,2]
[334663928,1723428792807,181.56680268,0.00012,2]
[334663929,1723428794997,668.19466264,0.00012,2]
[334663930,1723428798060,993.82902225,0.00012,2]
[334663931,1723428800853,155.51480148,0.00012,2]
[334663932,1723428801000,273.37336231,9.9e-05,2]
[334663933,1723428802146,182.0663252,0.00012,2]
[334663934,1723428802231,176.0985013,0.00012,2]
[334663935,1723428802374,1419.95903032,0.00012,2]
[334663936,1723428802969,342.94016552,0.00012,2]
[334663937,1723428803184,154.89468095,0.00012,2]
[334663938,1723428805410,367.38661609,0.00012,2]
[334663939,1723428806209,502.06966499,0.00012,2]
[334663940,1723428807231,155.40171149,0.00012,2]
[334663941,1723428807354,2451.22306829,0.00012,2]
[334663942,1723428807637,189.35507665,0.00012,2]
[334663943,1723428809573,158.39702042,0.00012,2]
[334663944,1723428810918,3114.41030576,0.00014545,2]
[334663945,1723428812193,183.22267143,0.00014545,2]
[334663946,1723428817362,273.37336231,9.9e-05,2]